bitfinex/quotes_SOLUSD_20211001
["timestamp","ask_amount","ask_price","bid_price","bid_amount"]
[1633072901051,59.42971168,143.0,142.75,176.3308]
[1633072901052,2.4,142.86,142.83,2.4]
[1633072901253,2.4,142.86,142.78,2.42088]
[1633072901254,22.81809872,142.85,142.78,2.42088]
[1633072901451,22.81809872,142.85,142.77,2.4]
[1633072901649,22.81809872,142.85,142.59,78.4115]
[1633072901650,22.81809872,142.85,142.68,0.02088]
[1633072901850,22.81809872,142.85,142.69,2.4]
[1633072903252,4.8,142.86,142.7,5.63542961]
[1633072903452,4.8,142.86,142.81,30.0]
[1633072903653,2.4,142.86,142.81,30.0]
[1633072903961,2.4,142.86,142.81,32.4]
[1633072904352,2.4,142.86,142.82,0.02088]
[1633072904553,2.4,142.86,142.81,30.0]
[1633072905955,2.4,142.86,142.81,2.4]
[1633072906155,23.792,142.86,142.71,0.02088]
[1633072906357,2.55091057,142.83,142.68,0.02088]
[1633072906560,19.27991057,142.83,142.65,2.26088]
[1633072906756,19.27991057,142.83,142.65,0.02088]
[1633072906957,18.24935273,142.82,142.65,0.02088]
[1633072907157,27.07440526,142.81,142.62,20.451683]
[1633072907356,0.02088,142.8,142.62,20.430803]
[1633072907556,16.03023273,142.8,142.62,20.430803]
[1633072907756,16.03023273,142.8,142.65,2.24]
[1633072907956,0.02088,142.8,142.67,81.15267975]
[1633072908158,0.02088,142.87,142.67,81.15267975]
[1633072908356,30.0,142.88,142.68,0.02088]
[1633072908556,0.02088,142.87,142.69,2.24]
[1633072908759,45.57874909,142.87,142.69,8.2096429]
[1633072908957,0.02088,142.86,142.67,73.27725014]
[1633072909160,0.02088,142.84,142.67,73.27725014]
[1633072909359,23.42588,142.84,142.67,73.27725014]
[1633072909557,16.03023273,142.83,142.67,73.27725014]
[1633072909757,16.00935273,142.83,142.68,2.24]
[1633072909963,30.0,142.88,142.69,0.02088]
[1633072910157,30.0,142.88,142.7,2.24]
[1633072910460,30.0,142.88,142.72,0.02088]
[1633072910664,24.17038017,142.87,142.73,2.24]
[1633072910858,39.71538017,142.87,142.73,0.02088]
[1633072911057,39.71538017,142.87,142.71,23.55265488]
[1633072911259,24.17038017,142.87,142.72,2.24]
[1633072911660,0.02088,142.94,142.73,0.02088]
[1633072911860,0.02088,142.94,142.74,2.24]
[1633072912658,0.02088,142.94,142.75,8.48322063]
[1633072912859,0.02088,142.96,142.77,3.1485671]
[1633072913058,2.24,143.01,142.79,3.11514483]
[1633072913261,2.24,143.01,142.8,2.24]
[1633072913262,17.5076,142.98,142.8,2.24]
[1633072913458,17.5076,142.98,142.79,0.02088]
[1633072913659,23.95523113,142.97,142.79,23.55265488]
[1633072913859,0.02088,142.96,142.77,3.13631038]
[1633072914061,2.24,142.95,142.74,3.20930655]
[1633072914261,0.02088,142.94,142.72,3.21824139]
[1633072914459,2.26088,142.93,142.71,3.24194605]
[1633072914660,0.02088,142.9,142.72,3.25015443]
[1633072914860,23.85756183,142.88,142.72,3.25015443]
[1633072915060,0.02088,142.87,142.72,3.25015443]
[1633072915260,0.02088,142.87,142.71,25.33324427]
[1633072915261,23.85756183,142.88,142.73,3.26763393]
[1633072915460,23.85756183,142.88,142.74,3.26442642]
[1633072915662,0.02088,142.93,142.75,5.48863766]
[1633072915861,0.02088,142.94,142.77,3.19975015]
[1633072916063,0.02088,142.96,142.79,3.17567954]
[1633072916264,2.26088,143.01,142.8,5.38509559]
[1633072916464,17.52588,143.0,142.77,3.17763482]
[1633072916661,2.4624708,142.98,142.77,3.17763482]
[1633072916864,22.68093434,142.91,142.75,3.23087638]
[1633072917061,45.80293434,142.91,142.77,3.1868089]
[1633072917263,45.80293434,142.91,142.72,121.65039456]
[1633072917264,2.54653999,142.88,142.72,4.81499456]
[1633072917463,26.4234329,142.72,142.69,2.24]
[1633072917663,49.7674329,142.72,142.67,73.29813014]
[1633072917862,49.7674329,142.72,142.67,73.27725014]
[1633072918362,22.93967378,142.71,142.67,73.27725014]
[1633072918563,26.4234329,142.72,142.67,73.27725014]
[1633072919468,2.24,142.88,142.68,2.24]
[1633072919667,23.12454475,142.84,142.69,6.06376809]
[1633072919866,0.02088,142.83,142.68,2.24]
[1633072920067,25.36454475,142.84,142.67,73.27725014]
[1633072920266,30.86771103,142.82,142.67,73.27725014]
[1633072920472,46.11371103,142.82,142.67,73.27725014]
[1633072920668,2.24,142.81,142.67,73.27725014]
[1633072920870,29.98366158,142.8,142.67,73.27725014]
[1633072921469,60.85137261,142.8,142.67,73.27725014]
[1633072922477,0.02088,142.82,142.67,73.27725014]
[1633072922670,0.67088,142.83,142.68,2.24]
[1633072922872,0.02088,142.86,142.68,2.24]
[1633072923071,0.65,142.88,142.69,0.02088]
[1633072923270,0.65,142.88,142.7,2.24]
[1633072923470,26.76853034,142.88,142.71,23.16082134]
[1633072923670,0.65,142.88,142.72,2.26088]
[1633072923869,75.5575,142.94,142.73,0.02088]
[1633072924070,76.2075,142.94,142.74,2.24]
[1633072924270,76.2075,142.94,142.75,0.02088]
[1633072924470,76.2075,142.94,142.76,2.24]
[1633072924471,0.36111111,142.94,142.76,2.24]
[1633072924673,121.66504752,143.01,142.77,28.74154389]
[1633072924674,28.13369662,142.97,142.77,28.74154389]
[1633072924870,28.13369662,142.97,142.78,2.26088]
[1633072925071,28.13369662,142.97,142.78,7.89630961]
[1633072925471,28.13369662,142.97,142.78,2.26088]
[1633072926270,58.13369662,142.97,142.78,2.26088]
[1633072926473,88.13369662,142.97,142.78,2.26088]
[1633072927071,88.13369662,142.97,142.79,0.02088]
[1633072927275,0.02088,142.96,142.77,28.72066389]
[1633072927471,16.4321246,142.96,142.76,2.24]
[1633072927671,5.42202982,142.95,142.77,30.0]
[1633072928072,16.4321246,142.94,142.77,30.0]
[1633072928273,23.82089221,142.94,142.77,30.0]
[1633072928473,23.33951402,142.93,142.77,30.0]
[1633072928672,17.5139,142.92,142.77,30.0]
[1633072928871,17.5139,142.92,142.78,27.64730233]
[1633072929271,17.5139,142.92,142.77,30.0]
[1633072929472,39.17403872,142.93,142.77,30.0]
[1633072929671,23.33951402,142.93,142.77,30.0]
[1633072929873,23.33951402,142.93,142.77,0.02088]
[1633072930271,23.33951402,142.93,142.77,23.97508517]
[1633072930671,23.36039402,142.93,142.77,23.95420517]
[1633072930873,424.25558304,142.92,142.75,30.0]
[1633072931071,424.25558304,142.92,142.74,2.24]
[1633072931273,424.25558304,142.92,142.75,476.64144335]
[1633072931474,424.25558304,142.92,142.76,0.02088]
[1633072931673,102.32581402,142.93,142.78,30.0]
[1633072931875,2.24,142.92,142.78,30.0]
[1633072932074,2.26088,142.92,142.78,30.0]
[1633072932704,102.32581402,142.93,142.78,30.0]
[1633072932875,30.0,142.94,142.78,30.0]
[1633072933073,30.0,142.94,142.78,32.24]
[1633072933273,30.0,142.94,142.78,32.26088]
[1633072933479,342.70155124,142.98,142.79,0.02088]
[1633072933874,22.83258545,142.97,142.79,0.02088]
[1633072934074,22.83258545,142.97,142.78,32.26088]
[1633072934478,2.24,142.96,142.78,30.02088]
[1633072934683,2.45894955,142.92,142.78,30.02088]
[1633072934880,0.02088,142.94,142.75,478.88144335]
[1633072935081,16.06704203,142.96,142.76,0.02088]
[1633072935479,16.06704203,142.96,142.76,25.23758364]
[1633072935698,18.09215043,142.96,142.76,25.23758364]
[1633072935882,16.06704203,142.96,142.76,25.23758364]
[1633072936078,16.06704203,142.96,142.77,2.26088]
[1633072936281,22.83258545,142.97,142.78,0.02088]
[1633072936479,22.83258545,142.97,142.8,28.08496277]
[1633072936682,22.83258545,142.97,142.81,0.02088]
[1633072937078,340.46155124,142.98,142.8,28.08496277]
[1633072937279,340.46155124,142.98,142.81,0.02088]
[1633072937480,340.46155124,142.98,142.82,39.87547698]
[1633072937681,340.46155124,142.98,142.83,0.02088]
[1633072937879,340.46155124,142.98,142.8,30.34584277]
[1633072938079,25.20417399,142.97,142.8,30.34584277]
[1633072938383,25.22505399,142.97,142.8,30.32496277]
[1633072938579,25.22505399,142.97,142.8,62.8489288]
[1633072938779,25.20417399,142.97,142.8,62.8698088]
[1633072938982,16.96725103,143.04,142.81,0.02088]
[1633072939181,0.09005594,143.05,142.83,0.02088]
[1633072939381,0.09005594,143.05,142.84,2.24]
[1633072939581,0.09005594,143.05,142.85,0.02088]
[1633072939781,0.09005594,143.05,142.86,2.24]
[1633072939980,30.0,142.97,142.87,23.16925443]
[1633072940184,24.13939752,142.96,142.87,23.16925443]
[1633072940380,24.13939752,142.96,142.87,0.02088]
[1633072940580,30.0,142.97,142.85,0.02088]
[1633072940786,30.0,142.97,142.86,2.24]
[1633072940982,30.0,142.97,142.87,0.02088]
[1633072941582,21.25838914,142.96,142.85,25.28682734]
[1633072941781,21.25838914,142.96,142.84,2.26088]
[1633072942181,21.25838914,142.96,142.81,196.0057]
[1633072942387,21.25838914,142.96,142.81,226.0057]
[1633072942585,21.25838914,142.96,142.82,2.24]
[1633072942785,21.25838914,142.96,142.83,29.52848069]
[1633072942985,21.25838914,142.96,142.84,0.02088]
[1633072943183,2.24,143.04,142.84,0.02088]
[1633072943385,0.02088,143.03,142.83,31.76848069]
[1633072943584,0.02088,143.03,142.84,32.52396603]
[1633072943785,2.24,143.04,142.85,2.26088]
[1633072943987,2.24,143.04,142.86,0.02088]
[1633072944186,23.24600255,143.03,142.86,26.21279674]
[1633072945010,23.24600255,143.03,142.86,0.02088]
[1633072945205,0.02088,143.02,142.83,2.24]
[1633072945609,0.02088,143.02,142.88,349.17840599]
[1633072946008,0.02088,143.02,142.89,28.37432806]
[1633072947411,435.60839952,143.05,142.89,30.61432806]
[1633072947610,420.65320382,143.05,142.9,63.88973505]
[1633072947809,420.65320382,143.05,142.89,28.37432806]
[1633072948015,450.65320382,143.05,142.89,28.37432806]
[1633072948408,27.02004217,143.04,142.89,28.37432806]
[1633072950812,27.02004217,143.04,142.9,0.02088]
[1633072951613,28.37432806,142.88,142.84,2.24]
[1633072951811,45.40232806,142.88,142.85,0.02088]
[1633072952011,45.40232806,142.88,142.81,0.02088]
[1633072952212,45.40232806,142.88,142.77,2.24]
[1633072952413,73.42623214,142.88,142.84,30.0]
[1633072952812,45.40232806,142.88,142.84,30.0]
[1633072953013,28.37432806,142.88,142.84,30.0]
[1633072953815,28.37432806,142.88,142.85,26.5557991]
[1633072954220,28.37432806,142.88,142.86,0.02088]
[1633072954417,28.37432806,142.88,142.85,26.5557991]
[1633072959720,25.73432806,142.88,142.85,28.7957991]
[1633072959920,0.02088,143.03,142.85,2.24]
[1633072960121,30.11093594,143.05,142.85,25.39142961]
[1633072960320,0.02088,143.04,142.85,25.39142961]
[1633072960721,30.09005594,143.05,142.85,25.41230961]
[1633072960926,27.46233011,143.04,142.86,26.43283861]
[1633072961122,27.46233011,143.04,142.87,2.24]
[1633072961526,0.02088,143.03,142.87,2.24]
[1633072962322,0.09005594,143.05,142.87,2.24]
[1633072962523,0.09005594,143.05,142.88,5.63542961]
[1633072962727,0.09005594,143.05,142.89,2.24]
[1633072963125,0.09005594,143.05,142.9,22.23932119]
[1633072963427,0.09005594,143.05,142.91,2.24]
[1633072963825,33.66499528,143.05,142.9,22.23932119]
[1633072964023,27.05677179,143.04,142.9,22.23932119]
[1633072964225,0.02088,143.03,142.96,378.19544243]
[1633072965027,0.02088,143.03,142.97,26.04407365]
[1633072965227,33.64411528,143.05,142.97,26.04407365]
[1633072965427,0.09005594,143.05,142.97,26.04407365]
[1633072966227,0.09005594,143.05,142.96,378.19544243]
[1633072966427,35.66873699,143.05,142.96,378.19544243]
[1633072966826,0.02088,143.04,142.96,378.19544243]
[1633072967028,2.04573021,143.04,142.96,378.19544243]
[1633072967226,26.49355296,143.03,142.96,378.19544243]
[1633072967627,26.49355296,143.03,142.86,30.0]
[1633072967828,2.025084,143.02,142.86,30.0]
[1633072968028,60.04767948,143.03,142.86,32.24]
[1633072968228,58.02266342,143.03,142.86,32.24]
[1633072968429,35.57926038,143.02,142.86,32.24]
[1633072968633,56.03326038,143.02,142.86,30.02088]
[1633072968832,2.02533504,143.01,142.86,30.02088]
[1633072969033,2.02533504,143.01,142.86,0.02088]
[1633072969229,2.02537495,143.0,142.84,0.02088]
[1633072969431,0.02088,143.0,142.83,2.24]
[1633072969631,57.85945061,143.0,142.84,25.68828046]
[1633072970032,24.30539127,143.0,142.83,32.24]
[1633072970232,58.18517512,143.0,142.89,531.90937644]
[1633072970632,31.87523989,143.0,142.89,531.90937644]
[1633072970834,0.02088,143.0,142.89,531.90937644]
[1633072971239,17.78097248,143.01,142.89,531.90937644]
[1633072971637,29.91613344,143.0,142.89,531.90937644]
[1633072971836,34.18159837,143.0,142.89,531.90937644]
[1633072972035,33.87991303,142.99,142.89,561.69356364]
[1633072972241,33.87991303,142.99,142.89,531.90937644]
[1633072972637,2.26088,142.98,142.83,30.0]
[1633072972837,0.02088,142.97,142.77,2.24]
[1633072973042,2.24,142.96,142.77,2.24]
[1633072973240,26.60385624,142.95,142.77,2.24]
[1633072973439,2.26088,142.94,142.73,190.59128]
[1633072973639,2.02621999,142.93,142.73,2.26088]
[1633072973842,2.24,142.92,142.73,0.02088]
[1633072974141,2.26088,142.91,142.7,0.02088]
[1633072974339,28.63799453,142.9,142.72,26.50537459]
[1633072974940,28.63799453,142.9,142.73,0.02088]
[1633072975143,16.55317708,142.92,142.73,2.26088]
[1633072975340,0.02088,142.95,142.74,5.65630961]
[1633072975542,0.02088,142.96,142.75,2.24]
[1633072975741,34.09435989,142.95,142.75,2.24]
[1633072975943,34.11523989,142.95,142.75,2.24]
[1633072976141,21.73801903,142.94,142.76,29.94933828]
[1633072976542,32.24,142.93,142.76,29.94933828]
[1633072976941,31.85435989,142.92,142.74,0.02088]
[1633072977142,4.26610898,142.91,142.72,0.02088]
[1633072977343,2.24,142.91,142.71,90.35795715]
[1633072977543,2.24,142.91,142.73,5.63542961]
[1633072977745,2.24,142.91,142.73,88.7928699]
[1633072977942,25.47897831,142.9,142.74,84.15595078]
[1633072978145,25.47897831,142.9,142.75,0.02088]
[1633072978544,2.45019803,142.84,142.68,2.26088]
[1633072978743,2.26088,142.89,142.68,2.26088]
[1633072978744,2.24,142.87,142.68,2.26088]
[1633072978946,17.7042903,142.89,142.68,2.26088]
[1633072979143,17.6834103,142.89,142.69,30.41278927]
[1633072979345,17.6834103,142.89,142.71,25.71470836]
[1633072979544,17.6834103,142.89,142.72,2.24]
[1633072979742,17.6834103,142.89,142.72,32.24]
[1633072980343,25.47897831,142.9,142.73,5.65630961]
[1633072980545,28.80687336,142.87,142.75,27.56890705]
[1633072980745,28.80687336,142.87,142.75,27.58978705]
[1633072980944,28.80687336,142.87,142.75,27.56890705]
[1633072981949,17.6834103,142.91,142.75,27.58978705]
[1633072982150,2.24,142.95,142.75,56.10321666]
[1633072982350,30.02088,142.96,142.76,2.24]
[1633072982750,30.0,142.96,142.77,5.65630961]
[1633072982949,21.82217506,142.95,142.78,23.18539476]
[1633072983153,21.82217506,142.95,142.79,0.02088]
[1633072983351,21.82217506,142.95,142.79,2.26088]
[1633072983550,21.82217506,142.95,142.8,0.02088]
[1633072983751,21.82217506,142.95,142.79,2.26088]
[1633072985150,49.7679526,143.0,142.85,462.23945936]
[1633072985352,49.7470726,143.0,142.85,485.07045936]
[1633072985550,49.7470726,143.0,142.85,22.831]
[1633072985950,77.89787694,143.0,142.86,0.02088]
[1633072986153,77.89787694,143.0,142.86,27.97648853]
[1633072986154,29.85092964,142.99,142.86,27.97648853]
[1633072986753,63.63716359,142.99,142.86,27.95560853]
[1633072986950,63.63716359,142.99,142.82,0.02088]
[1633072987155,19.74201941,142.98,142.81,0.02088]
[1633072987350,2.44257792,142.97,142.77,0.02088]
[1633072987550,2.44257792,142.97,142.76,155.2836]
[1633072987551,2.26088,142.96,142.76,155.2836]
[1633072987750,111.81152878,142.96,142.76,155.2836]
[1633072987956,26.64818004,142.9,142.77,23.04176871]
[1633072989554,26.64818004,142.9,142.76,77.6035]
[1633072989751,45.04018004,142.9,142.76,77.6035]
[1633072989952,76.87542882,142.9,142.71,0.02088]
[1633072990155,104.20672756,142.9,142.69,0.02088]
[1633072990351,17.50201941,142.89,142.69,0.02088]
[1633072990551,17.50201941,142.89,142.69,26.04842353]
[1633072990753,47.11814819,142.89,142.69,26.02754353]
[1633072991152,47.11814819,142.89,142.69,31.66297314]
[1633072991751,29.61612878,142.89,142.69,26.02754353]
[1633072992155,47.13906588,142.89,142.69,26.02754353]
[1633072992554,47.13906588,142.89,142.69,31.66297314]
[1633072992753,47.13906588,142.89,142.75,22.9956305]
[1633072993554,17.5438171,142.89,142.75,40.4116305]
[1633072993753,60.0,142.91,142.76,5.63542961]
[1633072993955,59.0,142.91,142.76,5.63542961]
[1633072994154,59.0,142.91,142.77,2.26088]
[1633072994354,59.0,142.91,142.78,0.02088]
[1633072994558,59.0,142.91,142.79,2.24]
[1633072994756,59.0,142.91,142.79,7.89630961]
[1633072995154,59.59524878,142.91,142.79,0.02088]
[1633072995354,86.92654752,142.91,142.75,0.02088]
[1633072995556,7.87542961,142.9,142.75,0.02088]
[1633072995754,7.87542961,142.9,142.74,494.11301766]
[1633072995954,29.61612878,142.89,142.74,494.11301766]
[1633072996154,56.84474564,142.89,142.75,27.99404627]
[1633072996355,56.84474564,142.89,142.75,46.07904627]
[1633072996754,56.82386564,142.89,142.75,46.07904627]
[1633072996958,49.53601286,142.95,142.9,7.28865126]
[1633072997158,40.0,142.91,142.9,5.126e-05]
[1633072997354,40.02088,142.91,142.75,27.99404627]
[1633072997755,0.02088,142.91,142.75,27.99404627]
[1633072997954,29.24805654,142.93,142.75,27.99404627]
[1633072998158,0.02088,142.92,142.75,27.99404627]
[1633072998558,56.1502031,142.93,142.75,27.99404627]
[1633072999158,86.1502031,142.93,142.75,35.86947588]
[1633072999357,59.22717654,142.93,142.75,35.86947588]
[1633072999559,86.1502031,142.93,142.76,0.02088]
[1633072999760,86.1502031,142.93,142.75,33.62947588]
[1633073000360,2.24,142.92,142.75,33.62947588]
[1633073000560,2.24,142.92,142.75,27.99404627]
[1633073000561,28.67725534,142.92,142.75,27.99404627]
[1633073000762,26.92302656,142.91,142.75,27.99404627]
[1633073000960,28.22663569,142.9,142.75,27.99404627]
[1633073001762,25.72663569,142.9,142.75,27.99404627]
[1633073002365,2.24,142.89,142.75,27.99404627]
[1633073002761,31.660368,142.89,142.75,27.99404627]
[1633073003360,33.68766181,142.89,142.75,27.99404627]
[1633073003560,2.24,142.89,142.75,27.99404627]
[1633073004561,22.81098429,142.88,142.75,27.99404627]
[1633073004964,50.5554664,142.88,142.74,494.11301766]
[1633073005764,2.24,142.87,142.74,494.11301766]
[1633073006163,27.74448211,142.86,142.75,29.04763563]
[1633073006565,2.24,142.87,142.75,29.04763563]
[1633073006763,2.24,142.9,142.75,29.04763563]
[1633073007364,30.14323997,142.89,142.75,29.04763563]
[1633073007568,2.24,142.88,142.74,496.11326958]
[1633073007767,29.98448211,142.88,142.74,494.11301766]
[1633073007966,0.02088,142.87,142.74,494.11301766]
[1633073008171,2.24,142.86,142.74,494.11301766]
[1633073008366,30.00536211,142.86,142.74,494.11301766]
[1633073008566,26.09586971,142.85,142.74,494.11301766]
[1633073009967,56.40086036,142.85,142.74,494.11301766]
[1633073010172,2.24,142.84,142.74,494.11301766]
[1633073010567,2.24,142.84,142.68,79.84347778]
[1633073010568,29.98448211,142.84,142.68,79.84347778]
[1633073010771,29.98448211,142.84,142.68,2.02737778]
[1633073010971,18.10146385,142.83,142.68,2.02737778]
[1633073011177,29.55812432,142.82,142.68,29.11464195]
[1633073011371,29.55812432,142.82,142.68,2.02737778]
[1633073011571,29.55812432,142.82,142.67,75.30482764]
[1633073011772,18.10146385,142.81,142.67,73.27725014]
[1633073011974,2.24,142.8,142.67,73.27725014]
[1633073012172,2.24,142.8,142.67,75.30458102]
[1633073012373,25.83703558,142.79,142.67,103.55586811]
[1633073012573,2.24,142.8,142.67,103.55586811]
[1633073012778,18.10146385,142.81,142.68,2.04808078]
[1633073012974,18.10146385,142.81,142.69,2.02174874]
[1633073013177,18.10146385,142.81,142.68,0.02088]
[1633073013576,25.64291423,142.8,142.69,2.02712027]
[1633073013777,25.64291423,142.8,142.7,24.64979996]
[1633073014180,25.64291423,142.8,142.68,0.02088]
[1633073014376,28.02291423,142.8,142.68,0.02088]
[1633073014776,18.10146385,142.79,142.68,0.02088]
[1633073014980,2.38,142.78,142.67,423.36617495]
[1633073015381,2.38,142.78,142.7,2.0267677]
[1633073015777,290.11445867,142.83,142.71,2.02668549]
[1633073015978,2.38,142.86,142.72,2.38]
[1633073016178,30.0,142.88,142.74,2.02626947]
[1633073016380,30.0,142.88,142.75,4.42700606]
[1633073016580,2.38,142.87,142.76,27.24497951]
[1633073016781,22.0615006,142.86,142.76,27.24497951]
[1633073016980,22.0615006,142.86,142.76,29.27134871]
[1633073017183,22.0615006,142.86,142.76,27.24497951]
[1633073017584,2.38,142.87,142.76,27.24497951]
[1633073018385,2.38,142.87,142.77,2.02624509]
[1633073018584,29.0,142.9,142.78,0.02088]
[1633073018786,27.30680926,142.89,142.78,0.02088]
[1633073019187,56.47073582,142.89,142.78,0.02088]
[1633073019386,62.10616543,142.89,142.77,0.02088]
[1633073019586,62.10616543,142.89,142.74,2.0476154]
[1633073019587,88.69679268,142.89,142.74,2.0476154]
[1633073019785,88.69679268,142.89,142.74,0.02088]
[1633073019786,17.5273,142.87,142.74,0.02088]
[1633073019983,2.40043227,142.85,142.7,2.04812891]
[1633073020189,2.38,142.84,142.71,2.02709573]
[1633073020384,2.38,142.84,142.73,2.02687995]
[1633073020784,2.38,142.84,142.74,2.02669135]
[1633073020986,26.21383521,142.83,142.75,22.07366543]
[1633073021286,2.38,142.84,142.75,22.07366543]
[1633073021486,2.38,142.87,142.75,41.94366543]
[1633073021686,2.38,142.87,142.76,0.02088]
[1633073022287,30.27659295,142.87,142.76,0.02088]
[1633073022486,30.27659295,142.87,142.75,22.09454543]
[1633073022687,2.38,142.87,142.75,22.09454543]
[1633073022887,2.38,142.87,142.76,1.97020842]
[1633073023089,2.38,142.87,142.75,22.09454543]
[1633073023285,2.38,142.87,142.76,2.38]
[1633073023887,2.38,142.87,142.76,25.00950837]
[1633073024089,29.0,142.91,142.78,2.02621337]
[1633073024290,29.0,142.91,142.79,0.02088]
[1633073024491,29.0,142.91,142.8,2.38]
[1633073024689,29.0,142.91,142.81,0.02088]
[1633073024890,29.0,142.91,142.82,2.38]
[1633073025091,29.0,142.91,142.83,0.02088]
[1633073025292,29.0,142.91,142.85,24.7413321]
[1633073025488,29.0,142.91,142.87,0.02088]
[1633073025691,29.0,142.91,142.83,0.02088]
[1633073025888,27.79503767,142.91,142.81,0.02088]
[1633073026088,2.28547469,142.95,142.8,4.34615343]
[1633073026290,4.66547469,142.95,142.81,1.97307926]
[1633073026489,4.66547469,142.95,142.82,0.02088]
[1633073026688,4.66547469,142.95,142.82,2.38]
[1633073026888,4.66547469,142.95,142.82,25.39271035]
[1633073027089,4.66547469,142.95,142.87,520.66539831]
[1633073027290,4.66547469,142.95,142.88,29.0578723]
[1633073027489,2.38,142.95,142.88,29.0578723]
[1633073028292,32.38,142.99,142.88,29.0578723]
[1633073028490,30.0,142.99,142.89,2.38]
[1633073028692,30.0,142.99,142.9,0.02088]
[1633073028890,59.0,142.99,142.91,2.38]
[1633073029091,27.74474967,142.98,142.92,0.02088]
[1633073029293,27.74474967,142.98,142.92,2.40088]
[1633073029498,27.74474967,142.98,142.92,2.38]
[1633073030094,59.0,142.99,142.92,2.38]
[1633073030897,29.0,142.99,142.88,2.38]
[1633073031094,29.0,142.99,142.9,28.0451054]
[1633073031095,24.07860374,142.98,142.9,28.0451054]
[1633073031496,23.57860374,142.98,142.9,28.0451054]
[1633073031722,2.38,143.02,142.9,28.0451054]
[1633073032699,29.95350915,143.01,142.9,28.0451054]
[1633073036107,29.95350915,143.01,142.88,2.38]
[1633073036906,5.63542961,143.0,142.88,2.38]
[1633073037106,8.01542961,143.0,142.87,520.66539831]
[1633073037308,58.97196006,142.99,142.87,520.66539831]
[1633073037509,24.70089855,142.98,142.81,2.38]
[1633073037729,86.14858708,142.98,142.81,2.38]
[1633073037906,31.57079437,142.97,142.81,2.38]
[1633073038108,2.38,142.96,142.83,30.0]
[1633073038309,36.42652284,142.96,142.83,30.0]
[1633073038506,33.0254502,142.95,142.83,30.0]
[1633073038711,33.0254502,142.95,142.83,60.0]
[1633073038712,2.38,142.94,142.83,60.0]
[1633073039107,2.38,142.94,142.84,29.44533081]
[1633073040308,2.38,142.94,142.83,30.0]
[1633073040514,30.79109323,142.94,142.78,2.40088]
[1633073041107,5.63542961,142.93,142.78,2.40088]
[1633073041315,10.23624186,142.93,142.79,23.9213979]
[1633073041508,51.21552443,142.92,142.79,23.9213979]
[1633073041710,2.38,142.91,142.79,23.9213979]
[1633073041908,5.38051339,142.93,142.8,2.38]
[1633073042109,28.41109323,142.97,142.8,18.846]
[1633073042309,0.02088,142.99,142.8,79.85465851]
[1633073042510,59.0,143.0,142.81,0.02088]
[1633073042710,30.0,143.0,142.82,2.38]
[1633073042909,22.98580005,142.99,142.83,24.16532521]
[1633073043109,22.98580005,142.99,142.84,2.38]
[1633073043507,28.41109323,142.98,142.84,2.38]
[1633073043732,36.42652284,142.98,142.84,2.38]
[1633073043911,2.4379413,142.96,142.81,2.38]
[1633073044108,2.38,142.95,142.81,2.38]
[1633073044708,25.33452632,142.94,142.82,29.33235699]
[1633073044909,25.33452632,142.94,142.82,31.71235699]
[1633073045109,2.38,142.95,142.82,31.71235699]
[1633073045308,13.24887288,142.97,142.83,0.02088]
[1633073045508,57.51210163,143.05,142.84,2.38]
[1633073045509,2.38,143.02,142.84,2.38]
[1633073045710,2.38,143.02,142.84,8.03630961]
[1633073045910,2.38,143.02,142.84,4.36263899]
[1633073046110,29.63376992,143.01,142.85,27.0266357]
[1633073046310,45.7122673,143.01,142.86,2.40088]
[1633073046516,45.7122673,143.01,142.87,0.02088]
[1633073046732,45.7122673,143.01,142.89,22.75102221]
[1633073046912,74.12336053,143.01,142.89,22.75102221]
[1633073047113,2.38,143.0,142.88,0.02088]
[1633073047311,2.38,143.0,142.83,2.40088]
[1633073047515,71.8907563,142.99,142.83,2.40088]
[1633073047714,71.8907563,142.99,142.83,4.34592575]
[1633073047916,44.48959061,142.99,142.83,4.34592575]
[1633073048114,26.10533976,142.98,142.94,340.67699395]
[1633073049813,26.10533976,142.98,142.85,2.38]
[1633073050014,26.10533976,142.98,142.88,457.7949833]